Cogmind - Beta 15 @@@ ROGUE MODE // 2025.06.03 @ 07:19:13 Player: Savant Result: Destroyed by BU-Y50(R) with Subdweller Machine Gun Performance ------------- Evolutions (0) 0 Regions Visited (2) 400 Robots Destroyed (25) 125 Value Destroyed (578) 578 Prototype IDs (0) 0 Alien Tech Used (0) 0 Bonus (0) 0 TOTAL SCORE: 1103 Bonus ------- None Cogmind --------- Core Integrity 0/250 Matter 93/300 Energy 80/100 System Corruption 0% Temperature Cool (0) Movement Treading (240) Ox1 Location -10/Subcaves Parts ------- > --- POWER (1) -------- (None) > --- PROPULSION (2) --- Light Treads Light Treads > --- UTILITY (2) ------ High-capacity Storage Unit Core Shielding > --- WEAPON (2) ------- Hammer > --- INVENTORY (20) --- Ion Engine Light Ion Engine Subdweller Power Source Wheel Subdweller Monowheel Improved Heat Sink Subdweller Optics Seismic Detector Medium Laser Assault Rifle Assault Rifle Assault Rifle Grenade Launcher Mining Laser Peak State ------------ > --- POWER ------------ Light Nuclear Core > --- PROPULSION ------- Light Treads Light Treads > --- UTILITY ---------- High-capacity Storage Unit Seismic Detector > --- WEAPON ----------- Subdweller Machine Gun Hammer > --- INVENTORY -------- Ion Engine Light Ion Engine Subdweller Power Source Light Treads Light Treads Wheel Subdweller Monowheel Improved Heat Sink Subdweller Optics Core Shielding Medium Laser Assault Rifle Assault Rifle Assault Rifle Assault Rifle Assault Rifle Grenade Launcher Mining Laser [Rating: 12] Favorites ----------- Power Light Nuclear Core Engine Subdweller Power Source Power Core Light Nuclear Core Propulsion Light Treads Treads Light Treads Wheel Wheel Utility High-capacity Storage Unit Device Seismic Detector Storage High-capacity Storage Unit Protection Core Shielding Weapon Assault Rifle Ballistic Gun Assault Rifle Launcher Grenade Launcher Impact Weapon Hammer Build | -11 -10 -10 ------- Run | Yrd Mat Sub Slots Evolved . | . . . Power . | . . . Propulsion . | . . . Utility . | . . . Weapon . | . . . Parts Attached 23 | 7 9 7 Power 3 | 1 1 1 Engine 2 | 1 . 1 Core 1 | . 1 . Reactor . | . . . Propulsion 5 | 2 1 2 Treads 4 | 2 . 2 Leg . | . . . Wheel 1 | . 1 . Hover . | . . . Flight . | . . . Utility 5 | 2 2 1 Device 1 | 1 . . Storage 2 | 1 1 . Processor . | . . . Hackware . | . . . Protection 2 | . 1 1 Artifact . | . . . Weapon 10 | 2 5 3 Energy Gun . | . . . Energy Cannon . | . . . Ballistic Gun 8 | 2 4 2 Ballistic Cannon . | . . . Launcher 1 | . . 1 Special Weapon . | . . . Impact Weapon 1 | . 1 . Slashing Weapon . | . . . Piercing Weapon . | . . . Special Melee Weapon . | . . . Unidentified Prototypes . | . . . Parts Lost 7 | . . 7 Power 2 | . . 2 Propulsion 2 | . . 2 Utility 1 | . . 1 Weapon 2 | . . 2 Highest Loss Streak 2 | . . 2 To Critical Strikes 1 | . . 1 Average Backups 16 | 4 15 17 Power 2 | . 1 2 Propulsion 4 | 2 5 4 Utility 2 | . 2 3 Weapon 6 | . 5 7 Tool/Special . | . . . Unused Backups 12 | . 1 11 Power 2 | . . 2 Propulsion 4 | . . 4 Utility 2 | . . 2 Weapon 4 | . 1 3 Tool/Special . | . . . Average Slot Usage (%) 99 | . 100 99 Engine 2 | . 1 2 Core 11 | . 12 11 Treads 24 | . 18 27 Wheel 3 | . 9 . Device 13 | . 13 12 Storage 14 | . 14 14 Ballistic Gun 23 | . 20 25 Impact Weapon 4 | . 7 2 Peak Build Rating 12 | 7 11 12 Average Rating 10 | 5 10 11 On Entrance 6 | . 7 11 Naked Turns . | . . . Heaviest Build 52 | 14 52 52 Greatest Support 40 | 40 40 40 Greatest Overweight (x) 4 | . 4 1 Average Overweight (x) 1 | . 3 1 Largest Inventory Capacity 20 | 8 20 20 Average Capacity 19 | 7 19 20 Most Carried 20 | 7 18 20 Average Carried 16 | 4 15 17 Final Capacity 20 | 8 20 20 Final Carried 18 | 7 18 14 Class Distribution -------------------- 100% | Mutant Dominant Class ---------------- Mutant | -10/Materials Mutant | -10/Subcaves Resources | -11 -10 -10 ----------- Run | Yrd Mat Sub Matter Collected 799 | 265 258 276 Remotely . | . . . Salvage Created 824 | 28 496 300 Parts 52 | 6 33 13 Haulers Intercepted 2 | . 2 . Recyclers Shooed 2 | . 2 . Parts Field Recycled . | . . . Retrieved Matter . | . . . Parts Self-Destructed 4 | . . 4 Prevented . | . . . Kills | -11 -10 -10 ------- Run | Yrd Mat Sub Combat Hostiles Destroyed 15 | . 8 7 Melee 3 | . 2 1 Guns 9 | . 5 4 AOE 2 | . . 2 Classes Destroyed 9 | 1 6 2 Worker 1 | . 1 . Tunneler 2 | 2 . . Hauler 2 | . 2 . Recycler 2 | . 2 . Watcher 3 | . 3 . Swarmer 3 | . 3 . Grunt 7 | . 5 2 Sentry 1 | . . 1 Subdweller 4 | . . 4 Best Kill Streak 4 | 2 4 2 Combat Bots Only 3 | . 3 2 Max Kills in Single Turn 1 | 1 1 1 Gunslinging . | . . . Exploded 1 | . . 1 Melee 1 | . 1 1 Uniques/NPCs Destroyed . | . . . Combat | -11 -10 -10 -------- Run | Yrd Mat Sub Hostile Shots Fired 94 | . 27 67 Missed 28 | . 9 19 Hits 66 | . 18 48 Projectile 66 | . 18 48 Critical Strikes 1 | . . 1 Damage Taken 1175 | . 187 988 Core 252 | . 60 192 Absorbed by Shields . | . . . Redirected to Shielding 27 | . . 27 Core Remaining (%) 100 | 100 . . Volleys Fired 56 | 3 27 26 Largest 2 | 2 2 2 Hottest 50 | 40 40 50 Shots Fired 109 | 6 54 49 Gun 107 | 6 54 47 Cannon . | . . . Launcher 2 | . . 2 Special . | . . . Kinetic 107 | 6 54 47 Thermal . | . . . Explosive 2 | . . 2 Electromagnetic . | . . . Robot Hit Streak 18 | 2 9 18 Robot Miss Streak 3 | 1 3 1 Penetration Max . | . . . Secondary Targets . | . . . Shots Hit Robots 104 | 3 41 60 Core Hits 35 | 2 19 14 Critical Kills . | . . . Critical Parts Destroyed 1 | . 1 . Critical Strikes 1 | . 1 . Smash 1 | . 1 . Melee Attacks 105 | . 30 75 Impact 105 | . 30 75 Slashing . | . . . Piercing . | . . . Sneak Attacks 1 | . 1 . Combat Hostiles . | . . . Follow-up Attacks . | . . . Damage Inflicted 1578 | 33 608 937 Guns 1018 | 33 355 630 Cannons . | . . . Explosions 122 | . . 122 Melee 424 | . 246 178 Ramming 14 | . 7 7 Kinetic 1018 | 33 355 630 Thermal . | . . . Explosive 122 | . . 122 Electromagnetic . | . . . Impact 424 | . 246 178 Slashing . | . . . Piercing . | . . . Highest Corruption . | . . . Average Corruption . | . . . Corruption Purged . | . . . Corruption Blocked . | . . . Overload Shots . | . . . Overflow Damage 45 | . 45 . Projectiles . | . . . Explosions . | . . . Melee 45 | . 45 . Knockbacks 3 | . 2 1 Impact 2 | . 1 1 Kinetic . | . . . Secondary 1 | . 1 . Self-Inflicted Damage 24 | . 1 23 Shots 2 | . . 2 Rammed 4 | . 2 2 Targets Rammed 5 | . 3 2 Kicked . | . . . Crushed 1 | . 1 . Highest Temperature 54 | . 54 . Average Temperature 12 | . 12 . Received Heat Transfer 180 | . 72 108 Siege Activations . | . . . Martial Activations . | . . . Shielding Activations . | . . . Robots Disrupted . | . . . Combat Hostiles . | . . . Robots Corrupted 3 | . 3 . Combat Hostiles 1 | . 1 . Parts Fried 4 | . 4 . Impact Corruptions 3 | . 3 . Robots Melted . | . . . Combat Hostiles . | . . . Parts Melted . | . . . Heat Transferred . | . . . Parts Sabotaged . | . . . Parts Stolen . | . . . Parts Stripped . | . . . Power Chain Reactions . | . . . Alert | -11 -10 -10 ------- Run | Yrd Mat Sub Maximum Alert Level . | . . . Low Security (%) 100 | 100 100 . Level 1 . | . . . Level 2 . | . . . Level 3 . | . . . Level 4 . | . . . Level 5 . | . . . High Security . | . . . Max Security . | . . . Peak Influence 77 | 10 77 . Initial . | . . . Average 10 | . 10 . Influence Increases 404 | 10 324 70 Destroy 0b10 Robot/C 220 | . 160 60 Destroy 0b10 Robot/NC 50 | 10 40 . Destroy Leader 50 | . 40 10 Successful Hack 39 | . 39 . Select Force Hacks 30 | . 30 . Destroy Structure 15 | . 15 . Influence Decreases 404 | 10 324 70 Time Decay 404 | 10 324 70 Squads Dispatched 2 | . 2 . Investigation 2 | . 2 . Extermination . | . . . Reinforcement . | . . . Assault . | . . . Garrison . | . . . Intercept . | . . . Searches Triggered . | . . . Construction Impeded . | . . . Haulers Reinforced . | . . . Active Scanning Responses . | . . . Cargo Convoy Interrupts . | . . . Stealth | -11 -10 -10 --------- Run | Yrd Mat Sub Distress Signals 2 | . 2 . Communications Jammed . | . . . Distress Signals . | . . . Times Spotted 26 | . 18 8 Peak Tracking Total 5 | . 5 2 Tactical Retreats . | . . . Traps | -11 -10 -10 ------- Run | Yrd Mat Sub Traps Triggered 1 | . 1 . Indirectly . | . . . Trap Hack Attempts . | . . . Triggered . | . . . Disarmed . | . . . Reprogrammed . | . . . Reused . | . . . Traps Extracted . | . . . Installed . | . . . Triggered . | . . . Machines | -11 -10 -10 ---------- Run | Yrd Mat Sub Machines Disabled . | . . . Max in Single Turn . | . . . Machines Repaired . | . . . Machines Dismantled . | . . . Machines Sabotaged . | . . . Overloaded Fab Kills . | . . . Hacking | -11 -10 -10 --------- Run | Yrd Mat Sub Machines Accessed 8 | . 8 . Terminals 7 | . 7 . Fabricators . | . . . Repair Stations . | . . . Recycling Units 1 | . 1 . Scanalyzers . | . . . Garrison Access . | . . . Total Hacks 21 | . 21 . Successful 11 | . 11 . Failed 10 | . 10 . Catastrophic 1 | . 1 . Database Lockouts . | . . . Manual 19 | . 19 . Terminals 20 | . 20 . Fabricators . | . . . Repair Stations . | . . . Recycling Units 1 | . 1 . Scanalyzers . | . . . Garrison Access . | . . . Terminal Hacks 2 | . 2 . Robot Analysis 1 | . 1 . Locate Traps 1 | . 1 . Fabricator Hacks . | . . . Repair Station Hacks . | . . . Recycling Unit Hacks . | . . . Scanalyzer . | . . . Garrison Access Hacks . | . . . Unauthorized Hacks 9 | . 9 . Terminals 8 | . 8 . Track 1 | . 1 . Botnet 1 | . 1 . Operators 1 | . 1 . Skim 5 | . 5 . Fabricators . | . . . Repair Stations . | . . . Recycling Units 1 | . 1 . Tunnel 1 | . 1 . Scanalyzers . | . . . Garrison Access . | . . . Data Cores Recovered . | . . . Used . | . . . Hacking Detections 7 | . 7 . Full Trace Events . | . . . Feedback Events . | . . . Feedback Blocked . | . . . Robot Schematics Acquired . | . . . Robots Built . | . . . Authchips . | . . . Time . | . . . Total Robot Build Rating . | . . . Part Schematics Acquired . | . . . Parts Built . | . . . Authchips . | . . . Time . | . . . Total Part Build Rating . | . . . Parts Repaired . | . . . Time . | . . . Parts Recycled . | . . . Recycled Matter . | . . . Retrieved Matter . | . . . Retrieved Components . | . . . Parts Scanalyzed . | . . . Part Schematics Acquired . | . . . Parts Damaged . | . . . Bothacking | -11 -10 -10 ------------ Run | Yrd Mat Sub Used RIF Installer . | . . . Robots Hacked . | . . . Non-combat . | . . . Combat . | . . . Robot Hacks Applied . | . . . Relay Couplers Released . | . . . Fabnet Peak Effective % . | . . . Robots Rewired . | . . . Allies Hacked . | . . . Hacks Repelled . | . . . Allies | -11 -10 -10 -------- Run | Yrd Mat Sub Total Allies . | . . . Largest Group . | . . . Highest-Rated Group . | . . . Highest-Rated Ally . | . . . Total Orders . | . . . Ally Attacks . | . . . Total Damage . | . . . Kills . | . . . Allies Corrupted . | . . . Allies Melted . | . . . Intel | -11 -10 -10 ------- Run | Yrd Mat Sub Active Infowar (turns) 4960 | 41 1745 3174 Seismic 4960 | 41 1745 3174 Robot Analysis Total 1 | . 1 . Derelict Logs Recovered 2 | . . 2 Drone Launches . | . . . Drone Recoveries . | . . . Exploration | -11 -10 -10 ------------- Run | Yrd Mat Sub Turns Passed 5391 | 144 1778 3469 Spaces Moved 1931 | 77 828 1026 Core 6 | 6 . . Treads 1302 | 71 205 1026 Legs . | . . . Wheels 623 | . 623 . Hover . | . . . Flight . | . . . Fastest Speed 50 | 50 140 240 Average Speed 202 | 151 159 240 Slowest Speed 240 | 160 240 240 Overloaded Moves . | . . . Propulsion Burnouts . | . . . Robots Hopped . | . . . Potential Cave-ins . | . . . Cave-ins Triggered . | . . . Exploration Rate (%) 46 | 6 90 43 Regions Visited 2 Branch Regions 1 Pre-discovered Areas 1 | . 1 . Known Exits Taken 1 | . 1 . Unknown Exits Taken 1 | 1 . . Scrap Searched . | . . . Spaces Dug 30 | . 15 15 Terrain Destroyed 39 | . 15 24 Melee 30 | . 15 15 Projectile . | . . . AOE 9 | . . 9 Terrain Rammed . | . . . Walls Destroyed . | . . . Machines Disabled . | . . . Actions | -11 -10 -10 --------- Run | Yrd Mat Sub Total 3107 | 96 1174 1837 Wait 919 | 2 253 664 Move 1929 | 76 827 1026 Hop . | . . . Pick Up 26 | 8 13 5 Fast Attach 6 | 6 . . Attach 7 | 1 1 5 Detach . | . . . Swap 45 | . 15 30 Drop 9 | . 5 4 Fire 56 | 3 27 26 Melee 105 | . 30 75 Ram 1 | . 1 . Kick . | . . . Crush 4 | . 2 2 Escape Stasis . | . . . Rewire . | . . . Trap . | . . . Miscellaneous . | . . . Route ------- -11/Scrapyard -10/Materials (discovered 6 exits: *Mat x3 / [*Min x2] / *Sub) -10/Subcaves History --------- Turn | Location | Event 24 | -11/Scrapyard | Discovered new exit (range 15) 145 | -11/Scrapyard | Entered Materials 282 | -10/Materials | Discovered new exit (range 10) 306 | -10/Materials | Build established: Mutant 516 | -10/Materials | Discovered new exit (range 13) 764 | -10/Materials | Discovered new exit (range 16) 1184 | -10/Materials | Discovered new exit (range 15) 1209 | -10/Materials | Identified exit to Materials 1270 | -10/Materials | Learned 8 Materials zone layouts 1362 | -10/Materials | Learned 4 Materials zone layouts 1394 | -10/Materials | Learned location of 2 exits from Mines 1437 | -10/Materials | Learned Storage emergency access door positions 1488 | -10/Materials | Identified exit to Subcaves 1923 | -10/Materials | Entered Subcaves 1932 | -10/Subcaves | Learned Materials stockpile data 2767 | -10/Subcaves | A swath of the cavern ceiling suddenly collapsed 3018 | -10/Subcaves | Learned Materials trap positions 4646 | -10/Subcaves | Core integrity fell below 50% 5366 | -10/Subcaves | Core integrity fell below 20% 5392 | -10/Subcaves | Destroyed by BU-Y50(R) with Subdweller Machine Gun Last Messages --------------- 04660_ Acquired 27 matter. 04711_ OH-P5U(R): "ECOKILL!" 04712_ Lgt. Nuclear Core destroyed. 04731_ OH-P5U(R) destroyed. 04732_ Subatomizers dissect the Sub. Optics. 04734_ Acquired 35 matter. 04738_ Acquired Sub. Power Source. 04747_ Subatomizers dissect the Sub. Optics. 05327_ IN-DLC(u) builds Twisted Machinery. 05335_ Slammed into BU-Y50(R). 05338_ IN-DLC(u) builds Twisted Machinery. 05343_ Sub. Machine Gun destroyed. 05347_ IN-DLC(u) builds Twisted Machinery. 05349_ Lgt. Treads destroyed. 05349_ IN-DLC(u) builds Twisted Machinery. 05363_ BU-Y50(R) knocked back. 05363_ IN-DLC(u) builds Twisted Machinery. 05386_ Sub. Power Source destroyed. 05390_ Critical hit (Destroy). 05390_ Lgt. Treads destroyed. Map ----- +----------------------------------------------------+ | ?????????????????????????????????????????????????? | | ?????????????????????????????????????????????????? | | ?????????????????????????????????????????????????? | | ?????????????????????????????????????????????????? | | ?????????????????????????????????????????????????? | | ?????????????????????????????????????????????????? | | ?????????????????????????????????????????????????? | | ?????????????????????????????????????????????????? | | ?????????????????????????????????????????????????? | | ?????????????????????????????????????????????????? | | ?????????????????????????????????????????????????? | | ?????????????????????????????????????????????????? | | ?????????????????????????????????????????????????? | | ?????????????????#???????????????????????????????? | | ??????????????? ???????????????????????????????? | | ???????####???? ???????????????????????????????? | | ???????# #???? #???????????????????????????????? | | ???????# #???# ###?????????????????????????????? | | ??????## ##??# #?????????????????????????????? | | ??????# #??# #??????????????????????????????? | | ??????# ####" ####?######????????????????????? | | ??????# ## """ #?#;####????????????????????? | | ??????# """ ####"";#????????????????????? | | ??????# ""##;#"""##????????????????????? | | ??????## #### """#?????????????????????? | | ???????### #?# u"@R###???????????????????? | | ?????????## ###" """#"#???????????????????? | | ??????????##### ###" #????????????????????? | | ??????????????## ## " #;#???????????????????? | | ??????????##??### &" ###???????????????????? | | ??????????#"##"### " #?????????????????????? | | ????????#### ######" # ##?????????????????????? | | ????????# #"#??## # ##???????????????#?????? | | ????????# "####### ##??????????????# ????? | | ???????## ##""## ## # #???????????????? ???? | | ??????## ####"# #????????????????# ??? | | ??????# #??# "" ##????????????????# ?? | | ??????# #??# #"# #?????????????????# # | | ??????# #??# ### #?????????????????# | | ??????## ##?### #?" #???????????????????# # | | ???????# ##?##"" ##?# #?????????????????????? | | ???????# ##??#" """##? #??????????????# "????# | | ???????# ##??#"" ""### ##??????????????# "" # | | ???????# #??#""" "##"" ##??????????????# " | | ???????# #?##""""""""""" ##?????????????# & | | ???????# ##?#""" """""#?????????????# | | ???????# ##?#""" """"#?????????????## | | ???????# ###""" """#??????????????## ? | | ???????# ##""" "#???????????????####?? | | ???????# """" ##????????????????????? | +----------------------------------------------------+ Best States ------------- Heat Dissipation 25 Energy Generation 14 Energy Capacity 250 Matter Stores 300 Matter Capacity 300 Sight Range 16 Terrain Scan Density 10 Armor Coverage 150 Core Shielding 20 Evasion (%) 40 Recoil Reduction 2 Item Schematics ----------------- None Robot Schematics ------------------ None Fabricated ------------ Nothing Repaired ---------- Nothing Alien Tech Used ----------------- None Achievements -------------- None Challenges ------------ None Game ------ Seed SignalSignalDrive Manual? 0 Play Time 00:27:02 Cumulative 905.7 hours Start 2025.06.03 @ 06:55:41 End 2025.06.03 @ 07:19:13 Sessions 1 Manual Loads 0 Difficulty Rogue Special Mode None Game No. 170 Rogue 170 Adventurer 0 Explorer 0 Win Type - Total 52 Types 23/4/9/1/3/1/6/2/2/1 Lore% 89 Gallery% 91 Achievement% 91 Wizard Run 0 Options --------- Layout 0 ASCII 0 Keyboard 0 Movement Numpad Keybinds 0 Fullscreen 1 Font 18/SmallcapsGlow Map View 76x50 Zoom Use 0% Tactical HUD 1 Map Filters NONE Filters NONE Steam 1 RUN: 3ddaf462-f1ac-44f1-b530-8924481c08f5